Workbook

Sheet Sheet1
A1: ALLURA, LLP
A2: Profit and Loss
A3: May 1, 2025-May 31, 2026
B5: May 2025 | C5: Jun 2025 | D5: Jul 2025 | E5: Aug 2025 | F5: Sep 2025 | G5: Oct 2025 | H5: Nov 2025 | I5: Dec 2025 | J5: Jan 2026 | K5: Feb 2026 | L5: Mar 2026 | M5: Apr 2026 | N5: May 2026 | O5: Total
A6: Income
A7: 4010 Apartment Rent | B7: 51528.05 | C7: 70769.64 | D7: 29883.21 | E7: 40509.85 | F7: 55117 | G7: 49893.5 | H7: 38688.21 | I7: 63023.73 | J7: 54423.34 | K7: 43704.11 | L7: 59216.38 | M7: 54295.34 | N7: 52867.5 | O7: =B7+C7+D7+E7+F7+G7+H7+I7+J7+K7+L7+M7+N7 -> 663919.86
A8: 4011 Aplication Fee | K8: 7866.44 | L8: 1975 | O8: =B8+C8+D8+E8+F8+G8+H8+I8+J8+K8+L8+M8+N8 -> 9841.44
A9: Total for 4010 Apartment Rent | B9: =B7+B8 -> 51528.05 | C9: =C7+C8 -> 70769.64 | D9: =D7+D8 -> 29883.21 | E9: =E7+E8 -> 40509.85 | F9: =F7+F8 -> 55117 | G9: =G7+G8 -> 49893.5 | H9: =H7+H8 -> 38688.21 | I9: =I7+I8 -> 63023.73 | J9: =J7+J8 -> 54423.34 | K9: =K7+K8 -> 51570.55 | L9: =L7+L8 -> 61191.38 | M9: =M7+M8 -> 54295.34 | N9: =N7+N8 -> 52867.5 | O9: =B9+C9+D9+E9+F9+G9+H9+I9+J9+K9+L9+M9+N9 -> 673761.3
A10: 4030 Utilities Reimbursement | B10: 3872.85 | C10: 3730.12 | E10: 3735.93 | F10: 5046.3 | G10: 0 | H10: 2988.64 | I10: 3815.06 | J10: 2889.09 | K10: 3951.13 | L10: 4738.99 | M10: 5097.37 | N10: 4532.05 | O10: =B10+C10+D10+E10+F10+G10+H10+I10+J10+K10+L10+M10+N10 -> 44397.53
A11: 4040 Washer Dryer & Vending | B11: 1510 | F11: 873.77 | H11: 964 | O11: =B11+C11+D11+E11+F11+G11+H11+I11+J11+K11+L11+M11+N11 -> 3347.77
A12: Total for Income | B12: =B6+B9+B10+B11 -> 56910.9 | C12: =C6+C9+C10+C11 -> 74499.76 | D12: =D6+D9+D10+D11 -> 29883.21 | E12: =E6+E9+E10+E11 -> 44245.78 | F12: =F6+F9+F10+F11 -> 61037.07 | G12: =G6+G9+G10+G11 -> 49893.5 | H12: =H6+H9+H10+H11 -> 42640.85 | I12: =I6+I9+I10+I11 -> 66838.79 | J12: =J6+J9+J10+J11 -> 57312.43 | K12: =K6+K9+K10+K11 -> 55521.68 | L12: =L6+L9+L10+L11 -> 65930.37 | M12: =M6+M9+M10+M11 -> 59392.71 | N12: =N6+N9+N10+N11 -> 57399.55 | O12: =B12+C12+D12+E12+F12+G12+H12+I12+J12+K12+L12+M12+N12 -> 721506.6
A13: Gross Profit | B13: =B12-0 -> 56910.9 | C13: =C12-0 -> 74499.76 | D13: =D12-0 -> 29883.21 | E13: =E12-0 -> 44245.78 | F13: =F12-0 -> 61037.07 | G13: =G12-0 -> 49893.5 | H13: =H12-0 -> 42640.85 | I13: =I12-0 -> 66838.79 | J13: =J12-0 -> 57312.43 | K13: =K12-0 -> 55521.68 | L13: =L12-0 -> 65930.37 | M13: =M12-0 -> 59392.71 | N13: =N12-0 -> 57399.55 | O13: =B13+C13+D13+E13+F13+G13+H13+I13+J13+K13+L13+M13+N13 -> 721506.6
A14: Expenses
A15: 6000 Wages | B15: 3652 | C15: 3509 | D15: 3685 | E15: 3795 | F15: 3916 | G15: 5478 | H15: 1947 | I15: 3597 | J15: 3333 | K15: 3542 | L15: 1782 | M15: 5368 | N15: 1760 | O15: =B15+C15+D15+E15+F15+G15+H15+I15+J15+K15+L15+M15+N15 -> 45364
A16: 6030 Trash | B16: 1533.68 | C16: 1533.68 | D16: 1533.68 | E16: 1533.68 | F16: 1533.68 | G16: 3161.46 | H16: 950 | I16: 539.28 | J16: 1900 | K16: 950 | L16: 950 | M16: 950 | N16: 950 | O16: =B16+C16+D16+E16+F16+G16+H16+I16+J16+K16+L16+M16+N16 -> 18019.14
A17: 6145 Contract Labor - secretarial
A18: 6147 Contract labor Accounting | M18: 156.25 | N18: 400 | O18: =B18+C18+D18+E18+F18+G18+H18+I18+J18+K18+L18+M18+N18 -> 556.25
A19: 6150 Mark - contract labor | M19: 1000 | O19: =B19+C19+D19+E19+F19+G19+H19+I19+J19+K19+L19+M19+N19 -> 1000
A20: 6155 John Boettcher - contract Labor | B20: 4000 | H20: 2000 | I20: 3000 | J20: 2000 | K20: 3000 | L20: 3000 | N20: 1785 | O20: =B20+C20+D20+E20+F20+G20+H20+I20+J20+K20+L20+M20+N20 -> 18785
A21: Total for 6145 Contract Labor - secretarial | B21: =B17+B18+B19+B20 -> 4000 | C21: =C17+C18+C19+C20 -> 0 | D21: =D17+D18+D19+D20 -> 0 | E21: =E17+E18+E19+E20 -> 0 | F21: =F17+F18+F19+F20 -> 0 | G21: =G17+G18+G19+G20 -> 0 | H21: =H17+H18+H19+H20 -> 2000 | I21: =I17+I18+I19+I20 -> 3000 | J21: =J17+J18+J19+J20 -> 2000 | K21: =K17+K18+K19+K20 -> 3000 | L21: =L17+L18+L19+L20 -> 3000 | M21: =M17+M18+M19+M20 -> 1156.25 | N21: =N17+N18+N19+N20 -> 2185 | O21: =B21+C21+D21+E21+F21+G21+H21+I21+J21+K21+L21+M21+N21 -> 20341.25
A22: 6146 Contract labor Building Main | B22: 4.84 | C22: 40.96 | E22: 42.03 | F22: 91.71 | G22: 177.86 | I22: 77.46 | J22: 4461.45 | K22: 3549 | L22: 3532.13 | M22: 2124.31 | N22: 3041.2 | O22: =B22+C22+D22+E22+F22+G22+H22+I22+J22+K22+L22+M22+N22 -> 17142.95
A23: 6160 Advertising, Marketing, Promo | B23: 4336.9 | C23: 4000 | D23: 2336.9 | E23: 336.9 | F23: 2836.9 | G23: 336.9 | I23: 6673.8 | J23: 336.9 | L23: 673.8 | M23: 336.9 | N23: 354 | O23: =B23+C23+D23+E23+F23+G23+H23+I23+J23+K23+L23+M23+N23 -> 22559.9
A24: 6180 Professional Fees | E24: 135 | F24: 112.5 | G24: 659.5 | H24: 1045 | I24: 1882.5 | J24: 3445.5 | K24: 80 | L24: 1219 | O24: =B24+C24+D24+E24+F24+G24+H24+I24+J24+K24+L24+M24+N24 -> 8579
A25: 6190 Interior & Building Maintenance | B25: 8019.84 | C25: 6371.65 | D25: 4049.36 | E25: 2743.79 | F25: 16388.81 | G25: 8753.65 | H25: 14517.77 | I25: 8039.54 | J25: 2733.23 | K25: 843.98 | L25: 5460.31 | M25: 204.59 | N25: 499.94 | O25: =B25+C25+D25+E25+F25+G25+H25+I25+J25+K25+L25+M25+N25 -> 78626.46
A26: 6200 Electricity | B26: 4226.77 | C26: 4292.7 | D26: 4451.33 | E26: 4749.44 | F26: 4370.43 | G26: 4122.44 | H26: 4157.02 | I26: 4199.86 | J26: 4154.91 | K26: 4258.75 | L26: 4155.32 | M26: 4138.3 | N26: 4268.81 | O26: =B26+C26+D26+E26+F26+G26+H26+I26+J26+K26+L26+M26+N26 -> 55546.08
A27: 6220 Gas | B27: 1731 | C27: 1904 | D27: 1904 | F27: 1904 | G27: 3808 | I27: 3808 | J27: 1904 | L27: 3854 | M27: 2068 | N27: 1877 | O27: =B27+C27+D27+E27+F27+G27+H27+I27+J27+K27+L27+M27+N27 -> 24762
A28: 6240 Telephone | B28: 685.55 | C28: 685.55 | D28: 693.95 | E28: 685.58 | F28: 685.47 | G28: 865.65 | H28: 638.52 | I28: 723.91 | J28: 723.91 | K28: 715.97 | L28: 715.97 | M28: 715.98 | O28: =B28+C28+D28+E28+F28+G28+H28+I28+J28+K28+L28+M28+N28 -> 8536.01
A29: 6250 Land & Grounds | B29: 2575 | C29: 2234 | D29: 2841.55 | E29: 2000 | F29: 2431.76 | G29: 2320 | O29: =B29+C29+D29+E29+F29+G29+H29+I29+J29+K29+L29+M29+N29 -> 14402.31
A30: 6260 Office Supplies | B30: 738.01 | I30: 96 | O30: =B30+C30+D30+E30+F30+G30+H30+I30+J30+K30+L30+M30+N30 -> 834.01
A31: 6270 Real Estate Taxes | D31: 8396.29 | E31: 13795.44 | M31: 24449.17 | O31: =B31+C31+D31+E31+F31+G31+H31+I31+J31+K31+L31+M31+N31 -> 46640.9
A32: 6280 Other Taxes | B32: 49.46 | O32: =B32+C32+D32+E32+F32+G32+H32+I32+J32+K32+L32+M32+N32 -> 49.46
A33: 6290 Licenses & Permits | I33: 510 | J33: 60 | N33: 650 | O33: =B33+C33+D33+E33+F33+G33+H33+I33+J33+K33+L33+M33+N33 -> 1220
A34: 6300 Insurance | B34: 6918.34 | C34: 11518.12 | D34: -2043 | E34: 5759.06 | F34: 5759.06 | G34: 5759.06 | H34: 5759.06 | I34: 5759.06 | J34: 5779.06 | K34: 5759.06 | L34: 5759.06 | M34: 6060.56 | N34: 6369.46 | O34: =B34+C34+D34+E34+F34+G34+H34+I34+J34+K34+L34+M34+N34 -> 74915.96
A35: 6310 Dues & Subscriptions | D35: 95 | O35: =B35+C35+D35+E35+F35+G35+H35+I35+J35+K35+L35+M35+N35 -> 95
A36: 6330 Payroll Tax Expense | B36: 279.38 | C36: 268.44 | D36: 281.91 | E36: 290.31 | F36: 299.58 | G36: 419.06 | H36: 148.95 | I36: 275.17 | J36: 279.99 | K36: 292.21 | L36: 137.07 | M36: 410.65 | N36: 134.64 | O36: =B36+C36+D36+E36+F36+G36+H36+I36+J36+K36+L36+M36+N36 -> 3517.36
A37: 6350 Interest Expense | I37: 162801.98 | J37: 8156.96 | O37: =B37+C37+D37+E37+F37+G37+H37+I37+J37+K37+L37+M37+N37 -> 170958.94
A38: 6375 CC Interest | B38: 625.54 | C38: 651.02 | D38: 631.86 | E38: 339.86 | F38: 549.45 | G38: 541.71 | H38: 534.62 | I38: 279.24 | J38: 279.72 | O38: =B38+C38+D38+E38+F38+G38+H38+I38+J38+K38+L38+M38+N38 -> 4433.02
A39: Total for 6350 Interest Expense | B39: =B37+B38 -> 625.54 | C39: =C37+C38 -> 651.02 | D39: =D37+D38 -> 631.86 | E39: =E37+E38 -> 339.86 | F39: =F37+F38 -> 549.45 | G39: =G37+G38 -> 541.71 | H39: =H37+H38 -> 534.62 | I39: =I37+I38 -> 163081.22 | J39: =J37+J38 -> 8436.68 | K39: =K37+K38 -> 0 | L39: =L37+L38 -> 0 | M39: =M37+M38 -> 0 | N39: =N37+N38 -> 0 | O39: =B39+C39+D39+E39+F39+G39+H39+I39+J39+K39+L39+M39+N39 -> 175391.96
A40: 6390 Bank Charges | C40: 100 | H40: 25 | I40: 20 | M40: 15 | N40: 20 | O40: =B40+C40+D40+E40+F40+G40+H40+I40+J40+K40+L40+M40+N40 -> 180
A41: 6400 AUTO Expense | C41: 218.59 | F41: 1248.02 | O41: =B41+C41+D41+E41+F41+G41+H41+I41+J41+K41+L41+M41+N41 -> 1466.61
A42: 6415 Repairs and Maintenance | I42: 4828.6 | J42: 3960.42 | K42: 2360.18 | L42: 1238.62 | M42: 4040.74 | N42: 5145.14 | O42: =B42+C42+D42+E42+F42+G42+H42+I42+J42+K42+L42+M42+N42 -> 21573.7
A43: 6500 Depreciation | I43: 38898 | O43: =B43+C43+D43+E43+F43+G43+H43+I43+J43+K43+L43+M43+N43 -> 38898
A44: 6550 Amortization | I44: 462 | O44: =B44+C44+D44+E44+F44+G44+H44+I44+J44+K44+L44+M44+N44 -> 462
A45: 6560 Payroll Expenses | B45: 0 | C45: 0 | D45: 0 | E45: 0 | F45: 0 | G45: 0 | H45: 0 | I45: 0 | J45: 0 | K45: 0 | L45: 0 | M45: 0 | N45: 0 | O45: =B45+C45+D45+E45+F45+G45+H45+I45+J45+K45+L45+M45+N45 -> 0
A46: 6900 Suspense Expense | L46: 2000 | O46: =B46+C46+D46+E46+F46+G46+H46+I46+J46+K46+L46+M46+N46 -> 2000
A47: Total for Expenses | B47: =B14+B15+B16+B21+B22+B23+B24+B25+B26+B27+B28+B29+B30+B31+B32+B33+B34+B35+B36+B39+B40+B41+B42+B43+B44+B45+B46 -> 39376.31 | C47: =C14+C15+C16+C21+C22+C23+C24+C25+C26+C27+C28+C29+C30+C31+C32+C33+C34+C35+C36+C39+C40+C41+C42+C43+C44+C45+C46 -> 37327.71 | D47: =D14+D15+D16+D21+D22+D23+D24+D25+D26+D27+D28+D29+D30+D31+D32+D33+D34+D35+D36+D39+D40+D41+D42+D43+D44+D45+D46 -> 28857.83 | E47: =E14+E15+E16+E21+E22+E23+E24+E25+E26+E27+E28+E29+E30+E31+E32+E33+E34+E35+E36+E39+E40+E41+E42+E43+E44+E45+E46 -> 36206.09 | F47: =F14+F15+F16+F21+F22+F23+F24+F25+F26+F27+F28+F29+F30+F31+F32+F33+F34+F35+F36+F39+F40+F41+F42+F43+F44+F45+F46 -> 42127.37 | G47: =G14+G15+G16+G21+G22+G23+G24+G25+G26+G27+G28+G29+G30+G31+G32+G33+G34+G35+G36+G39+G40+G41+G42+G43+G44+G45+G46 -> 36403.29 | H47: =H14+H15+H16+H21+H22+H23+H24+H25+H26+H27+H28+H29+H30+H31+H32+H33+H34+H35+H36+H39+H40+H41+H42+H43+H44+H45+H46 -> 31722.94 | I47: =I14+I15+I16+I21+I22+I23+I24+I25+I26+I27+I28+I29+I30+I31+I32+I33+I34+I35+I36+I39+I40+I41+I42+I43+I44+I45+I46 -> 246471.4 | J47: =J14+J15+J16+J21+J22+J23+J24+J25+J26+J27+J28+J29+J30+J31+J32+J33+J34+J35+J36+J39+J40+J41+J42+J43+J44+J45+J46 -> 43509.05 | K47: =K14+K15+K16+K21+K22+K23+K24+K25+K26+K27+K28+K29+K30+K31+K32+K33+K34+K35+K36+K39+K40+K41+K42+K43+K44+K45+K46 -> 25351.15 | L47: =L14+L15+L16+L21+L22+L23+L24+L25+L26+L27+L28+L29+L30+L31+L32+L33+L34+L35+L36+L39+L40+L41+L42+L43+L44+L45+L46 -> 34477.28 | M47: =M14+M15+M16+M21+M22+M23+M24+M25+M26+M27+M28+M29+M30+M31+M32+M33+M34+M35+M36+M39+M40+M41+M42+M43+M44+M45+M46 -> 52038.45 | N47: =N14+N15+N16+N21+N22+N23+N24+N25+N26+N27+N28+N29+N30+N31+N32+N33+N34+N35+N36+N39+N40+N41+N42+N43+N44+N45+N46 -> 27255.19 | O47: =B47+C47+D47+E47+F47+G47+H47+I47+J47+K47+L47+M47+N47 -> 681124.06
A48: Net Operating Income | B48: =B13-B47 -> 17534.59 | C48: =C13-C47 -> 37172.05 | D48: =D13-D47 -> 1025.38 | E48: =E13-E47 -> 8039.69 | F48: =F13-F47 -> 18909.7 | G48: =G13-G47 -> 13490.21 | H48: =H13-H47 -> 10917.91 | I48: =I13-I47 -> -179632.61 | J48: =J13-J47 -> 13803.38 | K48: =K13-K47 -> 30170.53 | L48: =L13-L47 -> 31453.09 | M48: =M13-M47 -> 7354.26 | N48: =N13-N47 -> 30144.36 | O48: =B48+C48+D48+E48+F48+G48+H48+I48+J48+K48+L48+M48+N48 -> 40382.54
A49: Other Income
A50: 7100 Interest Income | B50: 0.02 | C50: 0.02 | D50: 0.03 | E50: 0.02 | F50: 0.02 | G50: 0.03 | H50: 0.02 | I50: 344.72 | J50: 0.02 | K50: 0.02 | L50: 0.02 | M50: 0.03 | N50: 0.02 | O50: =B50+C50+D50+E50+F50+G50+H50+I50+J50+K50+L50+M50+N50 -> 344.99
A51: Total for Other Income | B51: =B49+B50 -> 0.02 | C51: =C49+C50 -> 0.02 | D51: =D49+D50 -> 0.03 | E51: =E49+E50 -> 0.02 | F51: =F49+F50 -> 0.02 | G51: =G49+G50 -> 0.03 | H51: =H49+H50 -> 0.02 | I51: =I49+I50 -> 344.72 | J51: =J49+J50 -> 0.02 | K51: =K49+K50 -> 0.02 | L51: =L49+L50 -> 0.02 | M51: =M49+M50 -> 0.03 | N51: =N49+N50 -> 0.02 | O51: =B51+C51+D51+E51+F51+G51+H51+I51+J51+K51+L51+M51+N51 -> 344.99
A52: Net Other Income | B52: =B51-0 -> 0.02 | C52: =C51-0 -> 0.02 | D52: =D51-0 -> 0.03 | E52: =E51-0 -> 0.02 | F52: =F51-0 -> 0.02 | G52: =G51-0 -> 0.03 | H52: =H51-0 -> 0.02 | I52: =I51-0 -> 344.72 | J52: =J51-0 -> 0.02 | K52: =K51-0 -> 0.02 | L52: =L51-0 -> 0.02 | M52: =M51-0 -> 0.03 | N52: =N51-0 -> 0.02 | O52: =B52+C52+D52+E52+F52+G52+H52+I52+J52+K52+L52+M52+N52 -> 344.99
A53: Net Income | B53: =B48+B52 -> 17534.61 | C53: =C48+C52 -> 37172.07 | D53: =D48+D52 -> 1025.41 | E53: =E48+E52 -> 8039.71 | F53: =F48+F52 -> 18909.72 | G53: =G48+G52 -> 13490.24 | H53: =H48+H52 -> 10917.93 | I53: =I48+I52 -> -179287.89 | J53: =J48+J52 -> 13803.4 | K53: =K48+K52 -> 30170.55 | L53: =L48+L52 -> 31453.11 | M53: =M48+M52 -> 7354.29 | N53: =N48+N52 -> 30144.38 | O53: =B53+C53+D53+E53+F53+G53+H53+I53+J53+K53+L53+M53+N53 -> 40727.53
A57: Accrual Basis Tuesday, June 09, 2026 02:15 PM GMTZ
